fUST/lending_fUST_20250725
["ID","MTS","AMOUNT","RATE_DAILY","PERIOD"]
[374750556,1753431036738,-460.0,0.00017017,2]
[374750558,1753431036748,-460.0,0.00017017,2]
[374750560,1753431036758,-460.0,0.00017017,2]
[374750562,1753431036768,-460.0,0.00017017,2]
[374750564,1753431036778,-151.0,0.00017017,2]
[374750566,1753431036789,-460.0,0.00017018,2]
[374750568,1753431036799,-460.0,0.00017018,2]
[374750570,1753431036809,-460.0,0.00017018,2]
[374750572,1753431036819,-460.0,0.00017018,2]
[374750575,1753431036829,-460.0,0.00017022,2]
[374750576,1753431036839,-1668.65827352,0.0001711,2]
[374750579,1753431036849,-6667.95846098,0.0001711,2]
[374750580,1753431036859,-277.1,0.00017285,2]
[374750582,1753431036869,-460.0,0.00017285,2]
[374750585,1753431036879,-460.0,0.00017285,2]
[374750587,1753431036888,-460.0,0.00017285,2]
[374750589,1753431036898,-460.0,0.00017285,2]
[374750591,1753431036908,-460.0,0.00017285,2]
[374750592,1753431036918,-460.0,0.00017285,2]
[374750594,1753431036928,-734.76,0.00017285,2]
[374750597,1753431036944,-460.0,0.00017286,2]
[374750599,1753431036954,-460.0,0.00017286,2]
[374750601,1753431036965,-460.0,0.00017286,2]
[374750603,1753431036975,-460.0,0.00017286,2]
[374750605,1753431036985,-460.0,0.00017286,2]
[374750607,1753431036995,-460.0,0.00017286,2]
[374750609,1753431037005,-460.0,0.00017286,2]
[374750611,1753431037015,-151.0,0.00017286,2]
[374750613,1753431037025,-460.0,0.00017286,2]
[374750615,1753431037036,-460.0,0.00017286,2]
[374750617,1753431037046,-177.753477,0.00017286,2]
[374750620,1753431037057,-460.0,0.00017286,2]
[374750622,1753431037066,-460.0,0.00017286,2]
[374750624,1753431037076,-597.85,0.00017286,2]
[374750626,1753431037086,-277.908108,0.00017286,2]
[374750628,1753431037096,-460.0,0.00017286,2]
[374750630,1753431037106,-460.0,0.00017286,2]
[374750632,1753431037116,-151.0,0.00017286,2]
[374750634,1753431037127,-151.0,0.00017286,2]
[374750636,1753431037137,-178.165099,0.00017286,2]
[374750638,1753431037148,-178.165099,0.00017286,2]
[374750640,1753431037158,-597.94221641,0.00017287,2]
[374750642,1753431037168,-303.97047411,0.00017287,2]
[374750644,1753431037179,-507.79536485,0.00017287,2]
[374750646,1753431037195,-500.0,0.00017289,2]
[374750648,1753431037207,-460.0,0.0001729,2]
[374750650,1753431037218,-159.46,0.0001729,2]
[374750652,1753431037228,-268.07491503,0.0001729,2]
[374750654,1753431037239,-460.0,0.0001729,2]
[374750656,1753431037249,-460.0,0.0001729,2]
[374750658,1753431037259,-167.38,0.0001729,2]
[374750660,1753431037269,-460.0,0.0001729,2]
[374750662,1753431037279,-151.0,0.0001729,2]
[374750664,1753431037289,-587.09,0.0001729,2]
[374750666,1753431037300,-151.818332,0.0001729,2]
[374750668,1753431037310,-548.7,0.0001729,2]
[374750670,1753431037320,-460.0,0.0001729,2]
[374750672,1753431037330,-460.0,0.0001729,2]
[374750675,1753431037340,-460.0,0.0001729,2]
[374750677,1753431037350,-230.114659,0.0001729,2]
[374750679,1753431037360,-230.114659,0.0001729,2]
[374750681,1753431037370,-460.0,0.0001729,2]
[374750682,1753431037380,-460.0,0.0001729,2]
[374750685,1753431037390,-151.0,0.0001729,2]
[374750687,1753431037399,-484.64,0.0001729,2]
[374750688,1753431037409,-460.0,0.0001729,2]
[374750703,1753431037548,-460.0,0.0001729,2]
[374750705,1753431037558,-460.0,0.0001729,2]
[374750707,1753431037568,-151.0,0.0001729,2]
[374750709,1753431037578,-460.0,0.0001729,2]
[374750711,1753431037587,-337.46650543,0.0001729,2]
[374750713,1753431037597,-465.95176194,0.0001729,2]
[374750715,1753431037607,-460.0,0.0001729,2]
[374750717,1753431037617,-460.0,0.0001729,2]
[374750719,1753431037626,-460.0,0.0001729,2]
[374750721,1753431037636,-460.0,0.0001729,2]
[374750723,1753431037647,-460.0,0.0001729,2]
[374750725,1753431037660,-460.0,0.0001729,2]
[374750727,1753431037670,-460.0,0.0001729,2]
[374750729,1753431037679,-460.0,0.0001729,2]
[374750731,1753431037692,-161.947177,0.0001729,2]
[374750733,1753431037704,-161.947177,0.0001729,2]
[374750735,1753431037713,-460.0,0.0001729,2]
[374750737,1753431037723,-563.36,0.0001729,2]
[374750739,1753431037733,-460.0,0.0001729,2]
[374750741,1753431037743,-460.0,0.0001729,2]
[374750743,1753431037754,-151.0,0.0001729,2]
[374750745,1753431037764,-151.0,0.0001729,2]
[374750747,1753431037773,-532.61,0.0001729,2]
[374750749,1753431037782,-460.0,0.0001729,2]
[374750751,1753431037791,-538.62336753,0.0001729,2]
[374750753,1753431037802,-151.0,0.0001729,2]
[374750755,1753431037811,-460.0,0.0001729,2]
[374750757,1753431037823,-151.0,0.0001729,2]
[374750759,1753431037833,-460.0,0.0001729,2]
[374750762,1753431037842,-502.84,0.0001729,2]
[374750763,1753431037852,-468.79007355,0.0001729,2]
[374750765,1753431037862,-460.0,0.0001729,2]
[374750768,1753431037871,-460.0,0.0001729,2]
[374750769,1753431037882,-460.0,0.0001729,2]
[374750771,1753431037891,-151.0,0.0001729,2]
[374750773,1753431037900,-165.077312,0.0001729,2]
[374750776,1753431037910,-460.0,0.0001729,2]
[374750777,1753431037921,-460.0,0.0001729,2]
[374750780,1753431037931,-460.0,0.0001729,2]
[374750781,1753431037943,-460.0,0.0001729,2]
[374750783,1753431037952,-460.0,0.0001729,2]
[374750786,1753431037962,-328.933362,0.0001729,2]
[374750788,1753431037972,-328.933362,0.0001729,2]
[374750789,1753431037981,-460.0,0.0001729,2]
[374750792,1753431037990,-460.0,0.0001729,2]
[374750794,1753431037999,-460.0,0.0001729,2]
[374750795,1753431038009,-460.0,0.0001729,2]
[374750797,1753431038018,-187.15,0.0001729,2]
[374750800,1753431038028,-460.0,0.0001729,2]
[374750802,1753431038038,-460.0,0.00017291,2]
[374750804,1753431038047,-460.0,0.00017291,2]
[374750806,1753431038058,-460.0,0.00017291,2]
[374750807,1753431038068,-460.0,0.00017291,2]
[374750810,1753431038078,-460.0,0.00017291,2]
[374750811,1753431038087,-460.0,0.00017291,2]
[374750813,1753431038097,-606.6221933,0.00017291,2]
[374750815,1753431038107,-460.0,0.00017291,2]
[374750818,1753431038116,-460.0,0.00017291,2]
[374750820,1753431038126,-460.0,0.00017291,2]
[374750822,1753431038136,-460.0,0.00017291,2]
[374750824,1753431038146,-310.00000032,0.00017292,2]
[374750826,1753431038156,-151.0,0.00017296,2]
[374750828,1753431038166,-460.0,0.00017559,2]
[374750830,1753431038176,-460.0,0.00017559,2]
[374750832,1753431038186,-460.0,0.00017559,2]
[374750834,1753431038197,-460.0,0.00017559,2]
[374750836,1753431038209,-734.76,0.00017559,2]
[374750837,1753431038219,-460.0,0.0001756,2]
[374750840,1753431038229,-460.0,0.0001756,2]
[374750841,1753431038238,-460.0,0.0001756,2]
[374750843,1753431038248,-460.0,0.0001756,2]
[374750845,1753431038258,-460.0,0.0001756,2]
[374750848,1753431038268,-460.0,0.0001756,2]
[374750849,1753431038279,-460.0,0.0001756,2]
[374750851,1753431038288,-460.0,0.0001756,2]
[374750853,1753431038298,-460.0,0.0001756,2]
[374750855,1753431038308,-460.0,0.0001756,2]
[374750857,1753431038318,-460.0,0.0001756,2]
[374750859,1753431038328,-460.0,0.0001756,2]
[374750861,1753431038339,-460.0,0.00017564,2]
[374750863,1753431038349,-151.0,0.00017564,2]
[374750865,1753431038359,-500.0,0.00017564,2]
[374750867,1753431038369,-322.973849,0.00017564,2]
[374750869,1753431038379,-155.83487081,0.00017564,2]
[374750871,1753431038389,-322.973849,0.00017564,2]
[374750874,1753431038399,-460.0,0.00017564,2]
[374750876,1753431038409,-460.0,0.00017564,2]
[374750877,1753431038418,-460.0,0.00017564,2]
[374750880,1753431038428,-460.0,0.00017564,2]
[374750882,1753431038441,-418.65,0.00017564,2]
[374750884,1753431038451,-460.0,0.00017564,2]
[374750886,1753431038461,-460.0,0.00017564,2]
[374750888,1753431038471,-548.92,0.00017564,2]
[374750890,1753431038481,-460.0,0.00017564,2]
[374750892,1753431038490,-579.42,0.00017564,2]
[374750894,1753431038500,-460.0,0.00017564,2]
[374750896,1753431038510,-460.0,0.00017564,2]
[374750898,1753431038520,-460.0,0.00017564,2]
[374750900,1753431038530,-460.0,0.00017564,2]
[374750901,1753431038539,-460.0,0.00017564,2]
[374750902,1753431038549,-460.0,0.00017564,2]
[374750903,1753431038558,-151.0,0.00017564,2]
[374750904,1753431038567,-232.759356,0.00017564,2]
[374750905,1753431038576,-532.61,0.00017564,2]
[374750906,1753431038585,-460.0,0.00017564,2]
[374750907,1753431038594,-460.0,0.00017564,2]
[374750908,1753431038603,-460.0,0.00017564,2]
[374750909,1753431038613,-460.0,0.00017564,2]
[374750910,1753431038625,-460.0,0.00017564,2]
[374750911,1753431038635,-460.0,0.00017564,2]
[374750912,1753431038644,-460.0,0.00017564,2]
[374750913,1753431038654,-460.0,0.00017564,2]
[374750914,1753431038668,-151.0,0.00017564,2]
[374750915,1753431038677,-151.0,0.00017564,2]
[374750916,1753431038688,-328.933362,0.00017564,2]
[374750917,1753431038698,-328.933362,0.00017564,2]
[374750918,1753431038708,-460.0,0.00017564,2]
[374750919,1753431038718,-460.0,0.00017564,2]
[374750920,1753431038727,-178.165099,0.00017564,2]
[374750921,1753431038737,-460.0,0.00017564,2]
[374750922,1753431038747,-178.165099,0.00017564,2]
[374750923,1753431038756,-460.0,0.00017564,2]
[374750924,1753431038768,-460.0,0.00017565,2]
[374750925,1753431038778,-460.0,0.00017565,2]
[374750926,1753431038787,-460.0,0.00017565,2]
[374750927,1753431038797,-460.0,0.00017565,2]
[374750928,1753431038806,-460.0,0.00017565,2]
[374750930,1753431038816,-460.0,0.00017565,2]
[374750931,1753431038826,-10636.81359524,0.00017738,2]
[374750933,1753431038835,-460.0,0.00017833,2]
[374750935,1753431038845,-460.0,0.00017833,2]
[374750937,1753431038855,-460.0,0.00017833,2]
[374750939,1753431038865,-287.94,0.00017833,2]
[374750941,1753431038874,-734.76,0.00017833,2]
[374750943,1753431038884,-460.0,0.00017834,2]
[374750945,1753431038894,-460.0,0.00017834,2]
[374750948,1753431038904,-460.0,0.00017834,2]
[374750950,1753431038914,-530.58,0.00017834,2]
[374750952,1753431038923,-460.0,0.00017834,2]
[374750954,1753431038933,-460.0,0.00017834,2]
[374750956,1753431038946,-460.0,0.00017834,2]
[374750958,1753431038956,-587.28,0.00017834,2]
[374750960,1753431038965,-354.42757029,0.00017834,2]
[374750962,1753431038975,-460.0,0.00017834,2]
[374750964,1753431038985,-460.0,0.00017834,2]
[374750966,1753431038995,-460.0,0.00017834,2]
[374750968,1753431039004,-460.0,0.00017838,2]
[374750970,1753431039014,-402.69429499,0.00017838,2]
[374750972,1753431039024,-460.0,0.00017838,2]
[374750974,1753431039034,-460.0,0.00017838,2]
[374750977,1753431039043,-225.404454,0.00017838,2]
[374750978,1753431039053,-460.0,0.00017838,2]
[374750981,1753431039063,-460.0,0.00017838,2]
[374750983,1753431039073,-460.0,0.00017838,2]
[374750984,1753431039083,-460.0,0.00017838,2]
[374750987,1753431039093,-460.0,0.00017838,2]
[374750989,1753431039103,-460.0,0.00017838,2]
[374750991,1753431039113,-460.0,0.00017838,2]
[374750993,1753431039123,-460.0,0.00017838,2]
[374750995,1753431039132,-532.61,0.00017838,2]
[374750996,1753431039141,-460.0,0.00017838,2]
[374750998,1753431039151,-460.0,0.00017838,2]
[374751000,1753431039161,-460.0,0.00017838,2]
[374751002,1753431039171,-460.0,0.00017838,2]
[374751004,1753431039181,-460.0,0.00017838,2]
[374751006,1753431039191,-460.0,0.00017838,2]
[374751008,1753431039202,-460.0,0.00017838,2]
[374751010,1753431039211,-460.0,0.00017838,2]
[374751013,1753431039222,-460.0,0.00017838,2]
[374751015,1753431039232,-460.0,0.00017838,2]
[374751017,1753431039243,-460.0,0.00017838,2]
[374751019,1753431039252,-460.0,0.00017838,2]
[374751021,1753431039262,-460.0,0.00017839,2]
[374751023,1753431039271,-460.0,0.00017839,2]
[374751025,1753431039281,-460.0,0.00017839,2]
[374751026,1753431039291,-560.73107567,0.00017839,2]
[374751028,1753431039300,-460.0,0.00017839,2]
[374751031,1753431039311,-500.0,0.00017919,2]
[374751033,1753431039321,-230.114659,0.0001801,2]
[374751035,1753431039331,-230.114659,0.0001801,2]
[374751037,1753431039342,-151.0,0.0001801,2]
[374751039,1753431039354,-161.947177,0.0001801,2]
[374751041,1753431039365,-161.947177,0.0001801,2]
[374751043,1753431039375,-151.0,0.0001801,2]
[374751045,1753431039385,-213.595709,0.0001801,2]
[374751047,1753431039395,-460.0,0.00018107,2]
[374751049,1753431039406,-460.0,0.00018107,2]
[374751051,1753431039416,-460.0,0.00018107,2]
[374751053,1753431039426,-734.76,0.00018107,2]
[374751055,1753431039436,-460.0,0.00018108,2]
[374751057,1753431039448,-460.0,0.00018108,2]
[374751059,1753431039457,-460.0,0.00018108,2]
[374751061,1753431039467,-460.0,0.00018108,2]
[374751063,1753431039476,-151.0,0.00018108,2]
[374751065,1753431039486,-460.0,0.00018108,2]
[374751067,1753431039496,-151.0,0.00018108,2]
[374751069,1753431039505,-178.165099,0.00018108,2]
[374751071,1753431039515,-178.165099,0.00018108,2]
[374751073,1753431039524,-151.0,0.00018112,2]
[374751075,1753431039534,-151.0,0.00018112,2]
[374751077,1753431039544,-177.41351395,0.00018112,2]
[374751079,1753431039554,-460.0,0.00018112,2]
[374751081,1753431039566,-460.0,0.00018112,2]
[374751083,1753431039575,-460.0,0.00018112,2]
[374751086,1753431039585,-460.0,0.00018112,2]
[374751088,1753431039594,-460.0,0.00018112,2]
[374751090,1753431039604,-460.0,0.00018112,2]
[374751092,1753431039613,-460.0,0.00018112,2]
[374751094,1753431039623,-460.0,0.00018112,2]
[374751096,1753431039632,-151.0,0.00018112,2]
[374751098,1753431039642,-532.61,0.00018112,2]
[374751100,1753431039654,-460.0,0.00018112,2]
[374751102,1753431039664,-460.0,0.00018112,2]
[374751104,1753431039674,-460.0,0.00018112,2]
[374751106,1753431039684,-460.0,0.00018112,2]
[374751108,1753431039697,-460.0,0.00018112,2]
[374751110,1753431039707,-460.0,0.00018112,2]
[374751112,1753431039716,-460.0,0.00018112,2]
[374751114,1753431039727,-328.933362,0.00018112,2]
[374751116,1753431039736,-328.933362,0.00018112,2]
[374751118,1753431039747,-460.0,0.00018112,2]
[374751120,1753431039756,-460.0,0.00018112,2]
[374751122,1753431039766,-460.0,0.00018112,2]
[374751124,1753431039776,-460.0,0.00018113,2]
[374751126,1753431039786,-460.0,0.00018113,2]
[374751128,1753431039796,-460.0,0.00018113,2]
[374751130,1753431039806,-415.34472614,0.00018193,2]
[374751132,1753431039816,-151.0,0.00018289,2]
[374751134,1753431039825,-500.0,0.00018372,2]
[374751136,1753431039835,-10000.0,0.00018373,2]
[374751138,1753431039844,-1675.5,0.00018377,3]
[374751140,1753431039854,-837.74,0.00018377,3]
[374751142,1753431039864,-418.88,0.00018377,3]
[374751144,1753431039873,-460.0,0.00018381,2]
[374751146,1753431039883,-569.96550915,0.00018381,2]
[374751148,1753431039893,-460.0,0.00018381,2]
[374751150,1753431039902,-734.76,0.00018381,2]
[374751152,1753431039912,-460.0,0.00018382,2]
[374751154,1753431039922,-460.0,0.00018382,2]
[374751156,1753431039932,-460.0,0.00018382,2]
[374751158,1753431039944,-460.0,0.00018382,2]
[374751160,1753431039954,-460.0,0.00018386,2]
[374751162,1753431039964,-460.0,0.00018386,2]
[374751164,1753431039974,-460.0,0.00018386,2]
[374751166,1753431039985,-460.0,0.00018386,2]
[374751168,1753431039994,-460.0,0.00018386,2]
[374751170,1753431040004,-239.57175506,0.00018386,2]
[374751172,1753431040014,-532.61,0.00018386,2]
[374751174,1753431040023,-460.0,0.00018386,2]
[374751176,1753431040033,-460.0,0.00018386,2]
[374751178,1753431040043,-460.0,0.00018386,2]
[374751180,1753431040053,-551.65,0.00018386,2]
[374751182,1753431040062,-460.0,0.00018386,2]
[374751184,1753431040072,-460.0,0.00018386,2]
[374751187,1753431040081,-460.0,0.00018386,2]
[374751188,1753431040091,-460.0,0.00018386,2]
[374751201,1753431040200,-160.12906897,0.00018387,2]
[374751203,1753431040210,-460.0,0.00018387,2]
[374751205,1753431040221,-460.0,0.00018387,2]
[374751207,1753431040231,-160.0,0.0001855,2]
[374751209,1753431040241,-2878.21541862,0.00018556,2]
[374751211,1753431040251,-151.0,0.0001856,2]
[374751213,1753431040260,-151.0,0.0001856,2]
[374751215,1753431040270,-178.165099,0.0001856,2]
[374751217,1753431040279,-178.165099,0.0001856,2]
[374751218,1753431040288,-420.0,0.00018577,2]
[374751220,1753431040298,-1680.0,0.00018579,2]
[374751222,1753431040308,-151.0,0.00018584,2]
[374751224,1753431040318,-326.847937,0.00018584,2]
[374751226,1753431040328,-460.0,0.00018655,2]
[374751229,1753431040338,-460.0,0.00018655,2]
[374751230,1753431040348,-734.76,0.00018655,2]
[374751233,1753431040360,-460.0,0.00018656,2]
[374751235,1753431040371,-460.0,0.00018656,2]
[374751237,1753431040381,-460.0,0.00018656,2]
[374751239,1753431040390,-460.0,0.00018656,2]
[374751241,1753431040401,-460.0,0.0001866,2]
[374751243,1753431040411,-274.77,0.0001866,2]
[374751244,1753431040421,-532.61,0.0001866,2]
[374751246,1753431040432,-460.0,0.0001866,2]
[374751249,1753431040446,-460.0,0.0001866,2]
[374751251,1753431040455,-238.29916225,0.0001866,2]
[374751252,1753431040464,-460.0,0.0001866,2]
[374751253,1753431040474,-460.0,0.0001866,2]
[374751254,1753431040483,-460.0,0.0001866,2]
[374751256,1753431040493,-460.0,0.0001866,2]
[374751258,1753431040503,-898.0,0.0001867,2]
[374751260,1753431040513,-151.0,0.00018832,2]
[374751262,1753431040523,-322.973849,0.00018832,2]
[374751264,1753431040532,-322.973849,0.00018832,2]
[374751265,1753431040542,-230.114659,0.00018832,2]
[374751266,1753431040551,-230.114659,0.00018832,2]
[374751267,1753431040561,-161.947177,0.00018832,2]
[374751268,1753431040571,-161.947177,0.00018832,2]
[374751269,1753431040581,-151.0,0.00018832,2]
[374751270,1753431040591,-151.0,0.00018832,2]
[374751271,1753431040601,-328.933362,0.00018832,2]
[374751272,1753431040612,-328.933362,0.00018832,2]
[374751273,1753431040621,-476.88235691,0.00018832,2]
[374751274,1753431040630,-160.0,0.00018832,2]
[374751275,1753431040640,-160.0,0.00018832,2]
[374751276,1753431040653,-215.93003454,0.00018832,2]
[374751277,1753431040663,-12627.2413641,0.00018832,2]
[374751278,1753431040672,-840.4016166,0.00018832,2]
[374751279,1753431040683,-160.0,0.00018832,2]
[374751280,1753431040695,-160.0,0.00018832,2]
[374751281,1753431040705,-160.0,0.00018832,2]
[374751282,1753431040714,-231.20877768,0.00018832,2]
[374751283,1753431040723,-160.0,0.00018832,2]
[374751284,1753431040734,-636.44978877,0.000189,2]
[374751285,1753431040744,-460.0,0.00018929,2]
[374751286,1753431040754,-551.1,0.00018929,2]
[374751287,1753431040764,-734.76,0.00018929,2]
[374751288,1753431040775,-460.0,0.0001893,2]
[374751289,1753431040784,-513.76,0.0001893,2]
[374751290,1753431040793,-460.0,0.0001893,2]
[374751291,1753431040802,-460.0,0.0001893,2]
[374751292,1753431040813,-460.0,0.00018934,2]
[374751293,1753431040823,-532.61,0.00018934,2]
[374751294,1753431040836,-460.0,0.00018934,2]
[374751295,1753431040851,-460.0,0.00018934,2]
[374751296,1753431040860,-460.0,0.00018934,2]
[374751297,1753431040870,-460.0,0.00018934,2]
[374751298,1753431040879,-460.0,0.00018934,2]
[374751299,1753431040889,-460.0,0.00018934,2]
[374751300,1753431040898,-151.0,0.00018958,2]
[374751301,1753431040908,-151.0,0.00018958,2]
[374751302,1753431040918,-260.0,0.00019098,2]
[374751303,1753431040928,-636.44978877,0.00019141,2]
[374751304,1753431040938,-375.6,0.00019203,2]
[374751305,1753431040949,-734.76,0.00019203,2]
[374751306,1753431040959,-460.0,0.00019204,2]
[374751307,1753431040968,-460.0,0.00019204,2]
[374751308,1753431040978,-304.95,0.00019204,2]
[374751309,1753431040987,-460.0,0.00019208,2]
[374751310,1753431040997,-532.61,0.00019208,2]
[374751311,1753431041007,-460.0,0.00019208,2]
[374751312,1753431041016,-460.0,0.00019208,2]
[374751313,1753431041026,-460.0,0.00019208,2]
[374751314,1753431041035,-460.0,0.00019208,2]
[374751315,1753431041046,-460.0,0.00019208,2]
[374751316,1753431041055,-460.0,0.00019208,2]
[374751317,1753431041065,-480.09,0.00019215,2]
[374751318,1753431041074,-636.44978877,0.00019383,2]
[374751319,1753431041084,-415.34472614,0.0001947,2]
[374751320,1753431041093,-151.0,0.00019473,2]
[374751321,1753431041103,-734.76,0.00019477,2]
[374751322,1753431041114,-460.0,0.00019478,2]
[374751323,1753431041123,-358.05,0.00019478,2]
[374751324,1753431041133,-206.46,0.00019482,2]
[374751325,1753431041142,-532.61,0.00019482,2]
[374751326,1753431041151,-460.0,0.00019482,2]
[374751327,1753431041162,-232.0,0.00019482,2]
[374751328,1753431041173,-460.0,0.00019482,2]
[374751329,1753431041182,-210.86672649,0.00019482,2]
[374751330,1753431041196,-151.0,0.00019482,2]
[374751331,1753431041206,-151.0,0.00019482,2]
[374751332,1753431041216,-460.0,0.00019482,2]
[374751333,1753431041226,-178.165099,0.00019482,2]
[374751334,1753431041235,-178.165099,0.00019482,2]
[374751335,1753431041245,-460.0,0.00019482,2]
[374751336,1753431041254,-215.0738,0.00019504,2]
[374751337,1753431041264,-3801.642,0.00019504,2]
[374751338,1753431041273,-4083.18461138,0.00019504,2]
[374751339,1753431041391,-1079.30644084,0.00019504,2]
[374751340,1753431041406,-3696.16801981,0.00019504,2]
[374751341,1753431041420,-500.48205604,0.0001952,2]
[374751342,1753431041433,-151.0,0.00019559,2]
[374751343,1753431041447,-328.933362,0.00019559,2]
[374751344,1753431041459,-328.933362,0.00019559,2]
[374751345,1753431041472,-945.32150592,0.00019559,2]
[374751346,1753431041486,-636.44978877,0.00019624,2]
[374751347,1753431041499,-360.0,0.00019646,2]
[374751348,1753431041512,-460.0,0.00019752,2]
[374751349,1753431041524,-532.61,0.00019756,2]
[374751350,1753431041536,-438.60273705,0.00019756,2]
[374751351,1753431041547,-460.0,0.00019756,2]
[374751352,1753431041559,-460.0,0.00019756,2]
[374751353,1753431041573,-460.0,0.00019756,2]
[374751354,1753431041586,-636.44978877,0.00019866,2]
[374751356,1753431041597,-460.0,0.00019955,2]
[374751358,1753431041609,-460.0,0.00019955,2]
[374751360,1753431041619,-460.0,0.00019955,2]
[374751362,1753431041632,-460.0,0.00019955,2]
[374751365,1753431041644,-460.0,0.00019955,2]
[374751366,1753431041657,-460.0,0.00019955,2]
[374751369,1753431041670,-460.0,0.00019955,2]
[374751371,1753431041682,-460.0,0.00019955,2]
[374751373,1753431041696,-460.0,0.00019955,2]
[374751375,1753431041709,-461.95116986,0.00019955,2]
[374751378,1753431041722,-460.0,0.00019955,2]
[374751380,1753431041735,-460.0,0.00019955,2]
[374751382,1753431041752,-460.0,0.00019955,2]
[374751384,1753431041766,-460.0,0.00019955,2]
[374751387,1753431041779,-153.554281,0.00019955,2]
[374751389,1753431041791,-151.0,0.00019955,2]
[374751391,1753431041801,-151.0,0.00019955,2]
[374751393,1753431041811,-151.0,0.00019955,2]
[374751395,1753431041822,-326.847937,0.00019955,2]
[374751397,1753431041834,-326.847937,0.00019955,2]
[374751400,1753431041848,-151.0,0.00019955,2]
[374751402,1753431041863,-322.973849,0.00019955,2]
[374751404,1753431041875,-322.973849,0.00019955,2]
[374751406,1753431041887,-230.114659,0.00019955,2]
[374751408,1753431041897,-230.114659,0.00019955,2]
[374751410,1753431041908,-161.947177,0.00019955,2]
[374751412,1753431041921,-49.65114458,0.00019955,2]
[374751442,1753431042204,-449.74909214,0.00017016,2]
[374751444,1753431042216,-734.76,0.00019751,2]
[374751446,1753431042229,-112.29603242,0.00019955,2]
[374751448,1753431042240,-151.0,0.00019955,2]
[374751450,1753431042251,-151.61561606,0.0002,2]
[374751452,1753431042261,-163.0,0.0002,3]
[374751453,1753431042272,-734.76,0.00020025,2]
[374751455,1753431042283,-532.61,0.0002003,2]
[374751458,1753431042293,-460.0,0.0002003,2]
[374751461,1753431042302,-469.72,0.0002003,2]
[374751463,1753431042312,-460.0,0.0002003,2]
[374751465,1753431042322,-262.1,0.00020032,3]
[374751467,1753431042331,-2878.21541862,0.00020055,2]
[374751469,1753431042341,-636.44978877,0.00020107,2]
[374751471,1753431042351,-960.18,0.0002013,2]
[374751473,1753431042360,-1189.566,0.00020187,2]
[374751475,1753431042370,-565.714657,0.00020187,2]
[374751477,1753431042380,-460.0,0.00020194,2]
[374751479,1753431042390,-151.0,0.000202,4]
[374751481,1753431042400,-223.55760895,0.00020212,2]
[374751484,1753431042410,-151.0,0.00020213,2]
[374751485,1753431042419,-151.0,0.00020213,2]
[374751488,1753431042429,-151.0,0.00020213,2]
[374751490,1753431042438,-587.0,0.00020291,2]
[374751492,1753431042450,-28.34058588,0.00020292,2]
[374751494,1753431042463,-765.65941412,0.00020292,2]
[374751496,1753431042474,-734.76,0.00020299,2]